[Event "*** SCC Grand Prix: Titled Tuesday Blitz"]
[Site "Chess.com"]
[Date "2020.06.23"]
[Round "9"]
[White "DonBroca"]
[Black "MateusViageiro"]
[Result "0-1"]
[WhiteElo "2134"]
[BlackElo "2249"]
[TimeControl "180+1"]
[EndTime "11:45:47 PDT"]
[Termination "MateusViageiro won by resignation"]

1. e4 {[%clk 0:02:57.7]} 1... c5 {[%clk 0:02:59.2]} 2. Nf3 {[%clk 0:02:57.1]}
2... d6 {[%clk 0:02:59.3]} 3. d4 {[%clk 0:02:57.4]} 3... cxd4 {[%clk 0:02:59.4]}
4. Nxd4 {[%clk 0:02:58.3]} 4... Nf6 {[%clk 0:02:58.6]} 5. Nc3 {[%clk 0:02:57.3]}
5... a6 {[%clk 0:02:58.9]} 6. Bg5 {[%clk 0:02:56.2]} 6... e6 {[%clk 0:02:58.8]}
7. f4 {[%clk 0:02:48.1]} 7... h6 {[%clk 0:02:58.6]} 8. Bh4 {[%clk 0:02:44.5]}
8... Be7 {[%clk 0:02:58.4]} 9. Qd3 {[%clk 0:02:37.5]} 9... Nbd7 {[%clk
0:02:56.3]} 10. O-O-O {[%clk 0:02:36.4]} 10... Nc5 {[%clk 0:02:56.1]} 11. Qe2
{[%clk 0:02:28]} 11... Nfxe4 {[%clk 0:02:51.6]} 12. Nxe4 {[%clk 0:02:22.6]}
12... Bxh4 {[%clk 0:02:46.7]} 13. Nxc5 {[%clk 0:02:22.6]} 13... dxc5 {[%clk
0:02:46.8]} 14. Nxe6 {[%clk 0:02:22.2]} 14... Qxd1+ {[%clk 0:02:40.4]} 15. Qxd1
{[%clk 0:02:15.7]} 15... Bxe6 {[%clk 0:02:39.4]} 16. g3 {[%clk 0:02:07.5]} 16...
Bf6 {[%clk 0:02:34.8]} 17. Qe1 {[%clk 0:02:04.4]} 17... O-O {[%clk 0:02:33.3]}
18. Bd3 {[%clk 0:02:02.6]} 18... Bd5 {[%clk 0:02:29.2]} 19. Rf1 {[%clk
0:01:59.8]} 19... c4 {[%clk 0:02:25.2]} 20. Bf5 {[%clk 0:01:55.7]} 20... c3
{[%clk 0:02:24.2]} 21. b3 {[%clk 0:01:45.9]} 21... Rfe8 {[%clk 0:02:20.7]} 22.
Qf2 {[%clk 0:01:43.3]} 22... Rad8 {[%clk 0:02:18.7]} 23. Rd1 {[%clk 0:01:35.6]}
23... g6 {[%clk 0:02:13.4]} 24. Bg4 {[%clk 0:01:25.6]} 24... b5 {[%clk
0:02:05.7]} 25. h4 {[%clk 0:01:14.1]} 25... h5 {[%clk 0:02:02]} 26. Be2 {[%clk
0:01:04.2]} 26... Be4 {[%clk 0:01:56]} 27. Rxd8 {[%clk 0:01:00.3]} 27... Rxd8
{[%clk 0:01:54.5]} 28. Qe3 {[%clk 0:01:00.6]} 28... Bf5 {[%clk 0:01:51.6]} 29.
Bd3 {[%clk 0:00:52.7]} 29... Bxd3 {[%clk 0:01:50]} 30. cxd3 {[%clk 0:00:53.6]}
30... Kf8 {[%clk 0:01:49]} 31. Qc5+ {[%clk 0:00:51.1]} 31... Kg7 {[%clk
0:01:47.9]} 32. Qb6 {[%clk 0:00:50.9]} 32... Re8 {[%clk 0:01:46.5]} 33. Qxa6
{[%clk 0:00:44.8]} 33... Re1+ {[%clk 0:01:44.6]} 34. Kc2 {[%clk 0:00:44.6]}
34... Re2+ {[%clk 0:01:44.3]} 35. Kd1 {[%clk 0:00:44.6]} 35... Rd2+ {[%clk
0:01:43.3]} 36. Kc1 {[%clk 0:00:44.1]} 36... Rxd3 {[%clk 0:01:40.2]} 37. Qxb5
{[%clk 0:00:41.6]} 37... Rxg3 {[%clk 0:01:40.1]} 38. a4 {[%clk 0:00:40.7]} 38...
Bd4 {[%clk 0:01:36]} 39. Qc4 {[%clk 0:00:38.2]} 39... Rg1+ {[%clk 0:01:31.5]}
40. Kc2 {[%clk 0:00:37.7]} 40... Rg2+ {[%clk 0:01:31.2]} 41. Kd1 {[%clk
0:00:34]} 41... c2+ {[%clk 0:01:29.4]} 42. Qxc2 {[%clk 0:00:20.3]} 42... Rxc2
{[%clk 0:01:27.8]} 43. Kxc2 {[%clk 0:00:21.2]} 43... Kf6 {[%clk 0:01:27.4]} 44.
Kd3 {[%clk 0:00:20.7]} 44... Bc5 {[%clk 0:01:26.5]} 45. Kc4 {[%clk 0:00:20.5]}
45... Ba7 {[%clk 0:01:26.1]} 46. b4 {[%clk 0:00:20.7]} 46... Kf5 {[%clk
0:01:26]} 47. Kd5 {[%clk 0:00:21.2]} 47... Kxf4 {[%clk 0:01:25.9]} 48. Kc6
{[%clk 0:00:21.8]} 48... g5 {[%clk 0:01:24.7]} 49. Kb7 {[%clk 0:00:19.1]} 49...
Be3 {[%clk 0:01:23.2]} 50. a5 {[%clk 0:00:19.2]} 50... gxh4 {[%clk 0:01:21.6]}
51. b5 {[%clk 0:00:19.6]} 51... h3 {[%clk 0:01:21.4]} 52. b6 {[%clk 0:00:19.6]}
52... h2 {[%clk 0:01:20.9]} 53. a6 {[%clk 0:00:19.1]} 0-1

[Event "*** SCC Grand Prix: Titled Tuesday Blitz"]
[Site "Chess.com"]
[Date "2020.06.23"]
[Round "9"]
[White "bratkoo"]
[Black "Karateloru"]
[Result "0-1"]
[WhiteElo "2435"]
[BlackElo "2631"]
[TimeControl "180+1"]
[EndTime "11:45:48 PDT"]
[Termination "Karateloru won by resignation"]

1. e4 {[%clk 0:03:00.9]} 1... c5 {[%clk 0:02:57.5]} 2. Nf3 {[%clk 0:02:59.5]}
2... e6 {[%clk 0:02:58.1]} 3. Nc3 {[%clk 0:02:58.7]} 3... Nc6 {[%clk 0:02:57.4]}
4. d4 {[%clk 0:02:58.8]} 4... cxd4 {[%clk 0:02:57.8]} 5. Nxd4 {[%clk 0:02:59]}
5... Bc5 {[%clk 0:02:50.2]} 6. Nb3 {[%clk 0:02:56.6]} 6... Bb6 {[%clk
0:02:49.4]} 7. Bd3 {[%clk 0:02:53.9]} 7... Nge7 {[%clk 0:02:47.5]} 8. Qe2 {[%clk
0:02:52.7]} 8... O-O {[%clk 0:02:47.1]} 9. Be3 {[%clk 0:02:52.7]} 9... f5 {[%clk
0:02:46.5]} 10. Bxb6 {[%clk 0:02:51.3]} 10... axb6 {[%clk 0:02:46.2]} 11. exf5
{[%clk 0:02:46.3]} 11... Nxf5 {[%clk 0:02:45.7]} 12. O-O {[%clk 0:02:45.3]}
12... d5 {[%clk 0:02:43.5]} 13. a3 {[%clk 0:02:33.2]} 13... Kh8 {[%clk
0:02:42.5]} 14. Rad1 {[%clk 0:02:31.9]} 14... Qg5 {[%clk 0:02:38.6]} 15. Bxf5
{[%clk 0:02:27.1]} 15... Qxf5 {[%clk 0:02:36.1]} 16. Nb5 {[%clk 0:02:26.9]}
16... Qf6 {[%clk 0:02:29.8]} 17. c3 {[%clk 0:02:22.1]} 17... Bd7 {[%clk
0:02:21.9]} 18. Rfe1 {[%clk 0:02:14.5]} 18... Rad8 {[%clk 0:02:15.9]} 19. N5d4
{[%clk 0:02:13.5]} 19... e5 {[%clk 0:02:15.2]} 20. Nxc6 {[%clk 0:02:13.4]} 20...
Bxc6 {[%clk 0:02:11]} 21. Rd2 {[%clk 0:02:09.5]} 21... Rde8 {[%clk 0:02:10.3]}
22. Qe3 {[%clk 0:02:08.3]} 22... h6 {[%clk 0:02:07.2]} 23. Qxb6 {[%clk
0:02:03.6]} 23... d4 {[%clk 0:02:07.3]} 24. cxd4 {[%clk 0:01:41.3]} 24... exd4
{[%clk 0:02:06.9]} 25. Rf1 {[%clk 0:01:26.1]} 25... Qg5 {[%clk 0:02:01.9]} 26.
f3 {[%clk 0:01:14.4]} 26... Qe3+ {[%clk 0:01:59.3]} 27. Kh1 {[%clk 0:01:11.8]}
27... Bd5 {[%clk 0:01:59]} 28. Qxd4 {[%clk 0:01:08.2]} 28... Bxb3 {[%clk
0:01:58.2]} 29. Qxe3 {[%clk 0:00:57.3]} 29... Rxe3 {[%clk 0:01:59.1]} 30. Kg1
{[%clk 0:00:57.2]} 30... Bc4 {[%clk 0:01:54.8]} 31. Rc1 {[%clk 0:00:56.6]} 31...
b5 {[%clk 0:01:54.6]} 32. Kf2 {[%clk 0:00:56.3]} 32... Rfe8 {[%clk 0:01:54.2]}
33. Rcc2 {[%clk 0:00:46.9]} 33... Rd3 {[%clk 0:01:31.9]} 34. Rxd3 {[%clk
0:00:46.5]} 34... Bxd3 {[%clk 0:01:32]} 35. Rd2 {[%clk 0:00:46.7]} 35... Bc4
{[%clk 0:01:32.1]} 36. g4 {[%clk 0:00:44.8]} 36... Kg8 {[%clk 0:01:28.1]} 37. h4
{[%clk 0:00:44.9]} 37... Kf7 {[%clk 0:01:27.9]} 38. g5 {[%clk 0:00:27.2]} 38...
hxg5 {[%clk 0:01:27.2]} 39. hxg5 {[%clk 0:00:27.5]} 39... Re5 {[%clk 0:01:27.8]}
40. f4 {[%clk 0:00:27.4]} 40... Rd5 {[%clk 0:01:27.8]} 41. Rc2 {[%clk
0:00:21.6]} 41... Ke6 {[%clk 0:01:18.9]} 42. a4 {[%clk 0:00:20.7]} 42... Kf5
{[%clk 0:01:18.6]} 43. axb5 {[%clk 0:00:20.4]} 43... Bxb5 {[%clk 0:01:18.3]} 44.
Rc7 {[%clk 0:00:19.8]} 44... g6 {[%clk 0:01:16.5]} 45. Rf7+ {[%clk 0:00:18.4]}
45... Kg4 {[%clk 0:01:15.4]} 46. Ke3 {[%clk 0:00:18.1]} 46... Bd3 {[%clk
0:01:13.8]} 47. b4 {[%clk 0:00:15.1]} 47... Bf5 {[%clk 0:01:13.4]} 48. Ke2
{[%clk 0:00:12.1]} 48... Rb5 {[%clk 0:01:12.3]} 49. Ke3 {[%clk 0:00:06.7]} 49...
Rxb4 {[%clk 0:01:12.3]} 50. Rc7 {[%clk 0:00:06.8]} 50... Rxf4 {[%clk 0:01:11.7]}
51. Rc1 {[%clk 0:00:06.2]} 51... Re4+ {[%clk 0:01:11.5]} 52. Kf2 {[%clk
0:00:06.3]} 52... Kxg5 {[%clk 0:01:11.7]} 0-1

[Event "*** SCC Grand Prix: Titled Tuesday Blitz"]
[Site "Chess.com"]
[Date "2020.06.23"]
[Round "9"]
[White "Lector118"]
[Black "Novoselski"]
[Result "1-0"]
[WhiteElo "2476"]
[BlackElo "2313"]
[TimeControl "180+1"]
[EndTime "11:45:48 PDT"]
[Termination "Lector118 won by resignation"]

1. d4 {[%clk 0:02:50.8]} 1... d6 {[%clk 0:02:57.3]} 2. e4 {[%clk 0:02:45.1]}
2... Nf6 {[%clk 0:02:52.2]} 3. Nc3 {[%clk 0:02:44.5]} 3... e5 {[%clk 0:02:52.2]}
4. Nge2 {[%clk 0:02:43.3]} 4... Be7 {[%clk 0:02:50]} 5. f3 {[%clk 0:02:42.9]}
5... O-O {[%clk 0:02:49.1]} 6. Be3 {[%clk 0:02:43.5]} 6... c6 {[%clk 0:02:48.8]}
7. Qd2 {[%clk 0:02:43.7]} 7... Qc7 {[%clk 0:02:48.7]} 8. O-O-O {[%clk
0:02:43.5]} 8... b5 {[%clk 0:02:48.7]} 9. g4 {[%clk 0:02:40.6]} 9... a6 {[%clk
0:02:38.7]} 10. g5 {[%clk 0:02:36.6]} 10... Nfd7 {[%clk 0:02:36.9]} 11. h4
{[%clk 0:02:34.1]} 11... b4 {[%clk 0:02:32.9]} 12. Nb1 {[%clk 0:02:27.8]} 12...
c5 {[%clk 0:02:28.6]} 13. d5 {[%clk 0:02:24.7]} 13... a5 {[%clk 0:02:25.5]} 14.
Ng3 {[%clk 0:02:23.4]} 14... Nb6 {[%clk 0:02:22.7]} 15. Nf5 {[%clk 0:02:16.1]}
15... Bxf5 {[%clk 0:02:17.6]} 16. exf5 {[%clk 0:02:17]} 16... f6 {[%clk
0:02:08.4]} 17. g6 {[%clk 0:02:13.8]} 17... h5 {[%clk 0:02:00.7]} 18. f4 {[%clk
0:02:09.8]} 18... N8d7 {[%clk 0:01:54.6]} 19. Qe2 {[%clk 0:02:09.3]} 19... Rfc8
{[%clk 0:01:40.7]} 20. Qxh5 {[%clk 0:02:07.9]} 20... Nf8 {[%clk 0:01:40.1]} 21.
fxe5 {[%clk 0:01:56]} 21... fxe5 {[%clk 0:01:39.1]} 22. Qf3 {[%clk 0:01:49.9]}
22... Bf6 {[%clk 0:01:25.6]} 23. h5 {[%clk 0:01:49.8]} 23... e4 {[%clk 0:01:21]}
24. Qh3 {[%clk 0:01:33.9]} 24... Na4 {[%clk 0:01:10.6]} 25. b3 {[%clk
0:01:13.8]} 25... Nc3 {[%clk 0:01:05.6]} 26. h6 {[%clk 0:00:52]} 26... a4 {[%clk
0:00:42.6]} 27. hxg7 {[%clk 0:00:48.9]} 27... Bxg7 {[%clk 0:00:41]} 28. Bg5
{[%clk 0:00:44.3]} 28... axb3 {[%clk 0:00:33.1]} 29. Nxc3 {[%clk 0:00:28.6]}
29... bxc3 {[%clk 0:00:29.8]} 30. cxb3 {[%clk 0:00:21]} 30... Qa5 {[%clk
0:00:23.5]} 31. Rh2 {[%clk 0:00:16.4]} 31... Qa3+ {[%clk 0:00:20.1]} 32. Kb1
{[%clk 0:00:16.6]} 32... c2+ {[%clk 0:00:20.1]} 33. Rxc2 {[%clk 0:00:17]} 33...
Qxb3+ {[%clk 0:00:19.9]} 34. Qxb3 {[%clk 0:00:16.3]} 1-0

[Event "*** SCC Grand Prix: Titled Tuesday Blitz"]
[Site "Chess.com"]
[Date "2020.06.23"]
[Round "9"]
[White "akashcheck"]
[Black "JoachimMouhamad"]
[Result "1-0"]
[WhiteElo "2240"]
[BlackElo "2419"]
[TimeControl "180+1"]
[EndTime "11:45:48 PDT"]
[Termination "akashcheck won by resignation"]

1. e4 {[%clk 0:03:00.5]} 1... e5 {[%clk 0:02:56.8]} 2. Nf3 {[%clk 0:03:00.9]}
2... Nc6 {[%clk 0:02:55]} 3. d4 {[%clk 0:03:01.2]} 3... exd4 {[%clk 0:02:52.8]}
4. Nxd4 {[%clk 0:03:02.1]} 4... Nf6 {[%clk 0:02:51.9]} 5. Nc3 {[%clk 0:03:01.5]}
5... Bb4 {[%clk 0:02:49.9]} 6. Nxc6 {[%clk 0:03:01.8]} 6... bxc6 {[%clk
0:02:48.4]} 7. Bd3 {[%clk 0:03:02.3]} 7... d5 {[%clk 0:02:47.4]} 8. exd5 {[%clk
0:03:03.2]} 8... cxd5 {[%clk 0:02:48.3]} 9. O-O {[%clk 0:03:03.4]} 9... O-O
{[%clk 0:02:49]} 10. Bg5 {[%clk 0:03:02.5]} 10... c6 {[%clk 0:02:48.7]} 11. Qf3
{[%clk 0:03:02.4]} 11... h6 {[%clk 0:02:48.8]} 12. Bxf6 {[%clk 0:03:01.3]} 12...
Qxf6 {[%clk 0:02:49.7]} 13. Qxf6 {[%clk 0:03:01.6]} 13... gxf6 {[%clk
0:02:50.6]} 14. Ne2 {[%clk 0:03:00.4]} 14... Bd6 {[%clk 0:02:43.7]} 15. Nd4
{[%clk 0:02:58.4]} 15... Bd7 {[%clk 0:02:37.5]} 16. Bf5 {[%clk 0:02:49.9]} 16...
c5 {[%clk 0:02:00.7]} 17. Bxd7 {[%clk 0:02:47.7]} 17... cxd4 {[%clk 0:02:00.6]}
18. Rad1 {[%clk 0:02:44.1]} 18... Bc5 {[%clk 0:01:50.3]} 19. b4 {[%clk
0:02:34.5]} 19... Rad8 {[%clk 0:01:47.1]} 20. bxc5 {[%clk 0:02:09.6]} 20... Rxd7
{[%clk 0:01:46]} 21. Rxd4 {[%clk 0:02:10.5]} 21... Rc8 {[%clk 0:01:46.7]} 22. c4
{[%clk 0:02:08.7]} 22... Rxc5 {[%clk 0:01:46.1]} 23. Rfd1 {[%clk 0:02:07.1]}
23... Ra5 {[%clk 0:01:43.3]} 24. Rxd5 {[%clk 0:01:42.4]} 24... Raxd5 {[%clk
0:01:12.6]} 25. cxd5 {[%clk 0:01:41.5]} 25... Rd6 {[%clk 0:01:10]} 26. f4 {[%clk
0:01:40.1]} 26... Kf8 {[%clk 0:01:08.5]} 27. Kf2 {[%clk 0:01:40.1]} 27... Ke7
{[%clk 0:01:08.6]} 28. Ke3 {[%clk 0:01:40.2]} 28... Ra6 {[%clk 0:01:07.9]} 29.
Rd2 {[%clk 0:01:39.7]} 29... Kd6 {[%clk 0:01:08]} 30. Ke4 {[%clk 0:01:38]} 30...
Ra5 {[%clk 0:00:58.2]} 31. Kf5 {[%clk 0:01:35.7]} 31... Ke7 {[%clk 0:00:58.7]}
32. Re2+ {[%clk 0:01:25.4]} 32... Kd6 {[%clk 0:00:56.2]} 33. Kxf6 {[%clk
0:01:22.5]} 33... Rxd5 {[%clk 0:00:56.3]} 34. g3 {[%clk 0:01:21]} 34... h5
{[%clk 0:00:49.6]} 35. Kxf7 {[%clk 0:01:17.1]} 35... h4 {[%clk 0:00:48.7]} 36.
Kf6 {[%clk 0:01:16.6]} 36... h3 {[%clk 0:00:46]} 37. f5 {[%clk 0:01:11.9]} 37...
Rd1 {[%clk 0:00:46.3]} 38. Kg5 {[%clk 0:01:07.2]} 38... Rg1 {[%clk 0:00:45.6]}
39. Kg4 {[%clk 0:01:06.8]} 39... Rg2 {[%clk 0:00:45.6]} 40. Re6+ {[%clk
0:01:05.9]} 40... Kd7 {[%clk 0:00:45.3]} 41. Kxh3 {[%clk 0:01:04.8]} 41... Rxa2
{[%clk 0:00:44.1]} 42. g4 {[%clk 0:01:04.5]} 42... a5 {[%clk 0:00:44.2]} 43. g5
{[%clk 0:01:04.2]} 43... a4 {[%clk 0:00:42.6]} 44. g6 {[%clk 0:01:04.4]} 44...
Ra3+ {[%clk 0:00:38]} 45. Kh4 {[%clk 0:01:00.7]} 45... Ra2 {[%clk 0:00:35.7]}
46. g7 {[%clk 0:00:56.8]} 46... Rxh2+ {[%clk 0:00:34.9]} 47. Kg3 {[%clk
0:00:56.6]} 47... Rh1 {[%clk 0:00:15.4]} 48. Kg2 {[%clk 0:00:54.2]} 1-0

[Event "*** SCC Grand Prix: Titled Tuesday Blitz"]
[Site "Chess.com"]
[Date "2020.06.23"]
[Round "9"]
[White "EvgenyRomanov"]
[Black "Shuvalov"]
[Result "1-0"]
[WhiteElo "2626"]
[BlackElo "2443"]
[TimeControl "180+1"]
[EndTime "11:45:49 PDT"]
[Termination "EvgenyRomanov won by checkmate"]

1. e4 {[%clk 0:02:55.3]} 1... e6 {[%clk 0:02:59.9]} 2. d4 {[%clk 0:02:54.4]}
2... d5 {[%clk 0:03:00.3]} 3. e5 {[%clk 0:02:54.8]} 3... c5 {[%clk 0:03:00.1]}
4. c3 {[%clk 0:02:54.5]} 4... Nc6 {[%clk 0:03:00.4]} 5. Nf3 {[%clk 0:02:53.5]}
5... Qb6 {[%clk 0:03:00.8]} 6. Be2 {[%clk 0:02:48.2]} 6... Nh6 {[%clk
0:02:59.4]} 7. a3 {[%clk 0:02:27.2]} 7... cxd4 {[%clk 0:02:55.8]} 8. cxd4 {[%clk
0:02:25.6]} 8... Nf5 {[%clk 0:02:55.5]} 9. O-O {[%clk 0:01:44.3]} 9... Nfxd4
{[%clk 0:02:49.1]} 10. Nxd4 {[%clk 0:01:43]} 10... Qxd4 {[%clk 0:02:49.2]} 11.
Bd3 {[%clk 0:01:39.3]} 11... Qxe5 {[%clk 0:02:37]} 12. Re1 {[%clk 0:01:37.9]}
12... Qd6 {[%clk 0:02:35.7]} 13. Nc3 {[%clk 0:01:36.7]} 13... a6 {[%clk
0:02:36]} 14. Qh5 {[%clk 0:01:33]} 14... Be7 {[%clk 0:02:22.6]} 15. Bd2 {[%clk
0:01:26.5]} 15... h6 {[%clk 0:02:17.3]} 16. Rad1 {[%clk 0:01:16.3]} 16... Qd8
{[%clk 0:01:42.6]} 17. Qg4 {[%clk 0:00:59.4]} 17... Bf6 {[%clk 0:01:35.7]} 18.
Bb1 {[%clk 0:00:49.2]} 18... Ne7 {[%clk 0:01:21.1]} 19. Na4 {[%clk 0:00:37.5]}
19... e5 {[%clk 0:01:14.4]} 20. Qg3 {[%clk 0:00:34.8]} 20... Be6 {[%clk
0:01:03.4]} 21. Nc5 {[%clk 0:00:33.9]} 21... b6 {[%clk 0:00:50.7]} 22. Nxe6
{[%clk 0:00:33.4]} 22... fxe6 {[%clk 0:00:51.6]} 23. Bc3 {[%clk 0:00:31.9]}
23... d4 {[%clk 0:00:38.2]} 24. Bb4 {[%clk 0:00:30.7]} 24... O-O {[%clk
0:00:27.9]} 25. Qd3 {[%clk 0:00:27.7]} 25... g6 {[%clk 0:00:17.3]} 26. Bxe7
{[%clk 0:00:26.7]} 26... Qxe7 {[%clk 0:00:18.2]} 27. Qxg6+ {[%clk 0:00:26.8]}
27... Qg7 {[%clk 0:00:18.9]} 28. Qh5 {[%clk 0:00:26.3]} 28... Qg5 {[%clk
0:00:17]} 29. Qh3 {[%clk 0:00:26.3]} 29... Rae8 {[%clk 0:00:16]} 30. Rd3 {[%clk
0:00:25.4]} 30... Kh8 {[%clk 0:00:14.4]} 31. Rg3 {[%clk 0:00:25.1]} 31... Qd2
{[%clk 0:00:14.3]} 32. Rf1 {[%clk 0:00:23.3]} 32... Bg7 {[%clk 0:00:14.7]} 33.
Rg6 {[%clk 0:00:21.7]} 33... Rf6 {[%clk 0:00:14.5]} 34. Qh5 {[%clk 0:00:18.1]}
34... Rxg6 {[%clk 0:00:13.7]} 35. Qxg6 {[%clk 0:00:17.8]} 35... Re7 {[%clk
0:00:13.1]} 36. Qh7# {[%clk 0:00:17.7]} 1-0

[Event "*** SCC Grand Prix: Titled Tuesday Blitz"]
[Site "Chess.com"]
[Date "2020.06.23"]
[Round "9"]
[White "MrChampion_Coach"]
[Black "Playgood28"]
[Result "1-0"]
[WhiteElo "2435"]
[BlackElo "2272"]
[TimeControl "180+1"]
[EndTime "11:45:49 PDT"]
[Termination "MrChampion_Coach won by resignation"]

1. e4 {[%clk 0:03:00.9]} 1... e5 {[%clk 0:02:56.6]} 2. Nf3 {[%clk 0:02:59.5]}
2... d6 {[%clk 0:02:56.4]} 3. d4 {[%clk 0:02:57.1]} 3... exd4 {[%clk 0:02:56.3]}
4. Nxd4 {[%clk 0:02:58]} 4... Nf6 {[%clk 0:02:55.9]} 5. Nc3 {[%clk 0:02:58.6]}
5... Be7 {[%clk 0:02:56]} 6. Bf4 {[%clk 0:02:58.6]} 6... O-O {[%clk 0:02:54.5]}
7. Qd2 {[%clk 0:02:58.5]} 7... a6 {[%clk 0:02:55]} 8. O-O-O {[%clk 0:02:56.2]}
8... b5 {[%clk 0:02:54.5]} 9. f3 {[%clk 0:02:56.6]} 9... c5 {[%clk 0:02:54.2]}
10. Nf5 {[%clk 0:02:56]} 10... Bxf5 {[%clk 0:02:52.8]} 11. exf5 {[%clk
0:02:56.9]} 11... Nc6 {[%clk 0:02:52.7]} 12. g4 {[%clk 0:02:46]} 12... Nd4
{[%clk 0:02:48.6]} 13. g5 {[%clk 0:02:42]} 13... b4 {[%clk 0:02:29.9]} 14. Ne2
{[%clk 0:02:14.5]} 14... Nh5 {[%clk 0:02:05.6]} 15. f6 {[%clk 0:02:10.4]} 15...
gxf6 {[%clk 0:02:02.4]} 16. Nxd4 {[%clk 0:02:07.6]} 16... cxd4 {[%clk
0:01:57.3]} 17. gxf6 {[%clk 0:01:56]} 17... Bxf6 {[%clk 0:01:52.9]} 18. Bh6
{[%clk 0:01:55.5]} 18... Re8 {[%clk 0:01:35.7]} 19. Bc4 {[%clk 0:01:49]} 19...
d5 {[%clk 0:01:32.3]} 20. Rhg1+ {[%clk 0:01:38.6]} 20... Kh8 {[%clk 0:01:31]}
21. Bd3 {[%clk 0:01:29.4]} 21... Rg8 {[%clk 0:01:17.3]} 22. Bf5 {[%clk
0:01:24.6]} 22... Qd6 {[%clk 0:01:03.5]} 23. Bg4 {[%clk 0:01:02.4]} 23... Ng7
{[%clk 0:01:01.4]} 24. Rg3 {[%clk 0:00:57.3]} 24... Ne6 {[%clk 0:00:57.5]} 25.
Rh3 {[%clk 0:00:56.8]} 25... Ng5 {[%clk 0:00:39.1]} 26. Rh5 {[%clk 0:00:53.8]}
26... Ne4 {[%clk 0:00:27.7]} 27. fxe4 {[%clk 0:00:47]} 27... Rxg4 {[%clk
0:00:26.2]} 28. Rxd5 {[%clk 0:00:41.2]} 28... Qe6 {[%clk 0:00:25.7]} 29. Rf5
{[%clk 0:00:26.6]} 29... Bg7 {[%clk 0:00:21.4]} 30. Bxg7+ {[%clk 0:00:25]} 30...
Rxg7 {[%clk 0:00:21.1]} 31. Qxd4 {[%clk 0:00:24.6]} 31... Qxa2 {[%clk
0:00:20.4]} 32. Rg5 {[%clk 0:00:11.5]} 32... Rg8 {[%clk 0:00:19.6]} 33. Rxg7
{[%clk 0:00:10.8]} 33... Rxg7 {[%clk 0:00:18.4]} 34. Qd8+ {[%clk 0:00:11.3]}
34... Rg8 {[%clk 0:00:16.7]} 35. Qf6+ {[%clk 0:00:12.2]} 1-0

[Event "*** SCC Grand Prix: Titled Tuesday Blitz"]
[Site "Chess.com"]
[Date "2020.06.23"]
[Round "9"]
[White "IsaacWiebe"]
[Black "c63_amg"]
[Result "0-1"]
[WhiteElo "2110"]
[BlackElo "2720"]
[TimeControl "180+1"]
[EndTime "11:45:49 PDT"]
[Termination "c63_amg won by resignation"]

1. e4 {[%clk 0:03:00.9]} 1... c5 {[%clk 0:02:59.4]} 2. Nf3 {[%clk 0:03:01]} 2...
d6 {[%clk 0:02:59.7]} 3. d4 {[%clk 0:03:01.3]} 3... cxd4 {[%clk 0:03:00.6]} 4.
Nxd4 {[%clk 0:03:01.9]} 4... Nf6 {[%clk 0:03:00.3]} 5. Nc3 {[%clk 0:03:02.5]}
5... a6 {[%clk 0:03:01]} 6. Bg5 {[%clk 0:03:01.6]} 6... Nbd7 {[%clk 0:03:00.6]}
7. Bc4 {[%clk 0:03:00.8]} 7... Qb6 {[%clk 0:02:52]} 8. Bb3 {[%clk 0:02:55.8]}
8... e6 {[%clk 0:02:46.3]} 9. Qd2 {[%clk 0:02:53]} 9... Be7 {[%clk 0:02:45.4]}
10. O-O-O {[%clk 0:02:50.6]} 10... Nc5 {[%clk 0:02:43.3]} 11. f3 {[%clk
0:02:44.1]} 11... Qc7 {[%clk 0:02:43.3]} 12. Kb1 {[%clk 0:02:42.3]} 12... b5
{[%clk 0:02:42]} 13. Rhe1 {[%clk 0:02:27.7]} 13... O-O {[%clk 0:02:30.4]} 14. h4
{[%clk 0:02:25.9]} 14... b4 {[%clk 0:02:19.6]} 15. Nce2 {[%clk 0:02:25.6]} 15...
a5 {[%clk 0:02:17.3]} 16. Nb5 {[%clk 0:02:04.9]} 16... Qb6 {[%clk 0:01:55.9]}
17. Nxd6 {[%clk 0:02:03.3]} 17... a4 {[%clk 0:01:56.3]} 18. Bc4 {[%clk
0:01:50.9]} 18... h6 {[%clk 0:01:40.3]} 19. e5 {[%clk 0:01:48.2]} 19... hxg5
{[%clk 0:01:23.3]} 20. exf6 {[%clk 0:01:46.3]} 20... Bxf6 {[%clk 0:01:23.5]} 21.
hxg5 {[%clk 0:01:45.5]} 21... Be5 {[%clk 0:01:23.8]} 22. f4 {[%clk 0:01:17]}
22... Bxd6 {[%clk 0:00:28.5]} 23. Qxd6 {[%clk 0:01:17.9]} 23... Qa5 {[%clk
0:00:28.7]} 24. Rh1 {[%clk 0:01:14.3]} 24... Bb7 {[%clk 0:00:27.2]} 25. g6
{[%clk 0:01:02.1]} 25... b3 {[%clk 0:00:27.4]} 26. Qe5 {[%clk 0:00:55.5]} 26...
bxc2+ {[%clk 0:00:23.2]} 27. Kxc2 {[%clk 0:00:55.7]} 27... Be4+ {[%clk
0:00:19.4]} 28. Kc1 {[%clk 0:00:53.5]} 28... Bxg6 {[%clk 0:00:20]} 29. Qg5
{[%clk 0:00:43.3]} 29... Rfc8 {[%clk 0:00:20.2]} 30. Nc3 {[%clk 0:00:39.8]}
30... a3 {[%clk 0:00:18.7]} 31. Qh4 {[%clk 0:00:31.1]} 31... axb2+ {[%clk
0:00:18.3]} 32. Kd2 {[%clk 0:00:29.5]} 32... Ne4+ {[%clk 0:00:17.6]} 33. Ke2
{[%clk 0:00:22.7]} 33... Bh5+ {[%clk 0:00:17.1]} 34. Qxh5 {[%clk 0:00:20.4]}
34... Ng3+ {[%clk 0:00:17.6]} 35. Kf3 {[%clk 0:00:19.4]} 35... Nxh5 {[%clk
0:00:18.1]} 36. Rxh5 {[%clk 0:00:19.4]} 36... Qxh5+ {[%clk 0:00:17.2]} 37. g4
{[%clk 0:00:20.3]} 37... Qh3+ {[%clk 0:00:17.3]} 38. Ke4 {[%clk 0:00:20.9]}
38... Rxc4+ {[%clk 0:00:17.7]} 0-1